fUSD/lending_fUSD_20240628
["ID","MTS","AMOUNT","RATE_DAILY","PERIOD"]
[330553116,1719563438363,-500.0,0.00019178,2]
[330553117,1719563438373,-500.0,0.00019178,2]
[330553118,1719563438383,-500.0,0.00019178,2]
[330553119,1719563438392,-500.0,0.00019178,2]
[330553120,1719563438402,-500.0,0.00019178,2]
[330553121,1719563438412,-500.0,0.00019178,2]
[330553122,1719563438422,-850.05,0.00019178,2]
[330553123,1719563438431,-500.0,0.00019178,2]
[330553124,1719563438440,-1049.0,0.00019178,2]
[330553125,1719563438450,-500.0,0.00019178,2]
[330553126,1719563438460,-3533.53,0.00019178,2]
[330553127,1719563438470,-500.0,0.00019178,2]
[330553128,1719563438480,-500.0,0.00019178,2]
[330553129,1719563438491,-500.0,0.00019178,2]
[330553130,1719563438500,-500.0,0.00019178,2]
[330553131,1719563438510,-500.0,0.00019178,2]
[330553132,1719563438520,-500.0,0.00019178,2]
[330553133,1719563438529,-1069.78,0.00019178,2]
[330553134,1719563438540,-500.0,0.00019178,2]
[330553135,1719563438553,-1235.78,0.00019178,2]
[330553136,1719563438562,-500.0,0.00019178,2]
[330553137,1719563438572,-500.0,0.00019178,2]
[330553138,1719563438583,-500.0,0.00019178,2]
[330553139,1719563438593,-539.7,0.00019178,2]
[330553140,1719563438603,-500.0,0.00019178,2]
[330553141,1719563438614,-500.0,0.00019178,2]
[330553142,1719563438625,-500.0,0.00019178,2]
[330553143,1719563438635,-500.0,0.00019178,2]
[330553144,1719563438644,-500.0,0.00019178,2]
[330553145,1719563438654,-620.47,0.00019178,2]
[330553146,1719563438664,-875.17,0.00019178,2]
[330553147,1719563438674,-500.0,0.00019178,2]
[330553148,1719563438684,-500.0,0.00019178,2]
[330553149,1719563438694,-604.32,0.00019178,2]
[330553150,1719563438703,-500.0,0.00019178,2]
[330553151,1719563438713,-580.2740836,0.00019178,2]
[330553152,1719563438724,-500.0,0.00019178,2]
[330553153,1719563438733,-500.0,0.00019178,2]
[330553154,1719563438743,-1609.39,0.00019178,2]
[330553155,1719563438752,-1855.17,0.00019178,2]
[330553156,1719563438761,-500.0,0.00019178,2]
[330553157,1719563438770,-500.0,0.00019178,2]
[330553158,1719563438779,-500.0,0.00019178,2]
[330553159,1719563438789,-500.0,0.00019178,2]
[330553160,1719563438798,-500.0,0.00019178,2]
[330553161,1719563438808,-500.0,0.00019178,2]
[330553162,1719563438818,-174.06132687,0.00019178,2]
[330553163,1719563438827,-500.0,0.00019178,2]
[330553164,1719563438836,-500.0,0.00019178,2]
[330553165,1719563438846,-586.83,0.00019178,2]
[330553166,1719563438856,-500.0,0.00019178,2]
[330553167,1719563438866,-1401.19,0.00019178,2]
[330553168,1719563438875,-500.0,0.00019178,2]
[330553169,1719563438885,-500.0,0.00019178,2]
[330553170,1719563438894,-500.0,0.00019178,2]
[330553171,1719563438903,-500.0,0.00019178,2]
[330553172,1719563438913,-1012.77,0.00019178,2]
[330553173,1719563438923,-500.0,0.00019178,2]
[330553174,1719563438933,-1012.77,0.00019178,2]
[330553175,1719563438942,-500.0,0.00019178,2]
[330553176,1719563438952,-1012.77,0.00019178,2]
[330553177,1719563438962,-1012.77,0.00019178,2]
[330553178,1719563438972,-500.0,0.00019178,2]
[330553179,1719563438982,-500.0,0.00019178,2]
[330553180,1719563438992,-1012.77,0.00019178,2]
[330553181,1719563439002,-500.0,0.00019178,2]
[330553182,1719563439011,-1012.77,0.00019178,2]
[330553183,1719563439021,-1012.77,0.00019178,2]
[330553184,1719563439031,-500.0,0.00019178,2]
[330553185,1719563439041,-500.0,0.00019178,2]
[330553186,1719563439051,-500.0,0.00019178,2]
[330553187,1719563439062,-522.81,0.00019178,2]
[330553188,1719563439072,-500.0,0.00019178,2]
[330553189,1719563439083,-500.0,0.00019178,2]
[330553190,1719563439093,-939.29,0.00019178,2]
[330553191,1719563439103,-500.0,0.00019178,2]
[330553192,1719563439112,-500.0,0.00019178,2]
[330553193,1719563439122,-500.0,0.00019178,2]
[330553194,1719563439131,-500.0,0.00019178,2]
[330553195,1719563439141,-500.0,0.00019178,2]
[330553196,1719563439152,-500.0,0.00019178,2]
[330553197,1719563439162,-500.0,0.00019178,2]
[330553198,1719563439171,-500.0,0.00019178,2]
[330553199,1719563439181,-500.0,0.00019178,2]
[330553200,1719563439191,-500.0,0.00019178,2]
[330553201,1719563439201,-500.0,0.00019178,2]
[330553202,1719563439210,-500.0,0.00019178,2]
[330553203,1719563439220,-923.73,0.00019178,2]
[330553204,1719563439230,-500.0,0.00019178,2]
[330553205,1719563439240,-500.0,0.00019178,2]
[330553206,1719563439251,-826.76,0.00019178,2]
[330553207,1719563439261,-500.0,0.00019178,2]
[330553208,1719563439271,-500.0,0.00019178,2]
[330553209,1719563439281,-500.0,0.00019178,2]
[330553210,1719563439291,-610.46,0.00019178,2]
[330553211,1719563439300,-500.0,0.00019178,2]
[330553212,1719563439311,-500.0,0.00019178,2]
[330553213,1719563439321,-500.0,0.00019178,2]
[330553214,1719563439332,-1880.88,0.00019178,2]
[330553215,1719563439343,-1191.05,0.00019178,2]
[330553216,1719563439353,-500.0,0.00019178,2]
[330553217,1719563439363,-500.0,0.00019178,2]
[330553218,1719563439373,-500.0,0.00019178,2]
[330553219,1719563439383,-500.0,0.00019178,2]
[330553220,1719563439393,-397.04577838,0.00019178,2]
[330553221,1719563439403,-500.0,0.00019178,2]
[330553222,1719563439413,-955.6,0.00019178,2]
[330553223,1719563439423,-2851.88,0.00019178,2]
[330553224,1719563439433,-844.77,0.00019178,2]
[330553225,1719563439443,-1255.81,0.00019178,2]
[330553226,1719563439453,-500.0,0.00019178,2]
[330553227,1719563439463,-500.0,0.00019178,2]
[330553228,1719563439473,-500.0,0.00019178,2]
[330553229,1719563439483,-6372.63,0.00019178,2]
[330553230,1719563439493,-500.0,0.00019178,2]
[330553231,1719563439503,-500.0,0.00019178,2]
[330553232,1719563439895,-500.0,0.00019178,2]
[330553233,1719563439924,-500.0,0.00019178,2]
[330553234,1719563439934,-601.98,0.00019178,2]
[330553235,1719563439945,-910.91,0.00019178,2]
[330553236,1719563439957,-788.16,0.00019178,2]
[330553237,1719563439968,-500.0,0.00019178,2]
[330553238,1719563439979,-842.45,0.00019178,2]
[330553239,1719563439990,-849.24,0.00019178,2]
[330553240,1719563440000,-551.78,0.00019178,2]
[330553241,1719563440011,-500.0,0.00019178,2]
[330553242,1719563440021,-1500.87,0.00019178,2]
[330553243,1719563440032,-500.0,0.00019178,2]
[330553244,1719563440043,-1682.46,0.00019178,2]
[330553245,1719563440054,-578.05510267,0.00019178,2]
[330553246,1719563440064,-3069.05,0.00019178,2]
[330553247,1719563440075,-534.74,0.00019178,2]
[330553248,1719563440086,-500.0,0.00019178,2]
[330553249,1719563440096,-821.2,0.00019178,2]
[330553250,1719563440107,-500.0,0.00019178,2]
[330553251,1719563440117,-500.0,0.00019178,2]
[330553252,1719563440128,-776.65,0.00019178,2]
[330553253,1719563440138,-500.0,0.00019178,2]
[330553254,1719563440150,-1304.83,0.00019178,2]
[330553255,1719563440160,-500.0,0.00019178,2]
[330553256,1719563440172,-500.0,0.00019178,2]
[330553257,1719563440182,-500.0,0.00019178,2]
[330553258,1719563440193,-927.84,0.00019178,2]
[330553259,1719563440203,-697.07,0.00019178,2]
[330553260,1719563440213,-500.0,0.00019178,2]
[330553261,1719563440224,-811.95,0.00019178,2]
[330553262,1719563440235,-200.0,0.00019178,2]
[330553263,1719563440245,-500.0,0.00019178,2]
[330553264,1719563440255,-759.66,0.00019178,2]
[330553265,1719563440266,-500.0,0.00019178,2]
[330553266,1719563440275,-500.0,0.00019178,2]
[330553267,1719563440286,-500.0,0.00019178,2]
[330553268,1719563440296,-500.0,0.00019178,2]
[330553269,1719563440307,-500.0,0.00019178,2]
[330553270,1719563440317,-2444.4,0.00019178,2]
[330553271,1719563440327,-500.0,0.00019178,2]
[330553272,1719563440337,-500.0,0.00019178,2]
[330553273,1719563440348,-2478.15,0.00019178,2]
[330553274,1719563440358,-500.0,0.00019178,2]
[330553275,1719563440369,-500.0,0.00019178,2]
[330553276,1719563440379,-692.05,0.00019178,2]
[330553277,1719563440389,-997.78,0.00019178,2]
[330553278,1719563440399,-500.0,0.00019178,2]
[330553279,1719563440409,-500.0,0.00019178,2]
[330553280,1719563440420,-3055.92,0.00019178,2]
[330553281,1719563440430,-500.0,0.00019178,2]
[330553282,1719563440441,-500.0,0.00019178,2]
[330553283,1719563440451,-2308.72,0.00019178,2]
[330553284,1719563440461,-1406.37,0.00019178,2]
[330553285,1719563440470,-500.0,0.00019178,2]
[330553286,1719563440480,-500.0,0.00019178,2]
[330553287,1719563440489,-1462.37,0.00019178,2]
[330553288,1719563440499,-500.0,0.00019178,2]
[330553289,1719563440509,-500.0,0.00019178,2]
[330553290,1719563440520,-2024.43,0.00019178,2]
[330553291,1719563440531,-500.0,0.00019178,2]
[330553292,1719563440543,-500.0,0.00019178,2]
[330553293,1719563440559,-1189.96,0.00019178,2]
[330553294,1719563440569,-1250.2,0.00019178,2]
[330553295,1719563440580,-500.0,0.00019178,2]
[330553296,1719563440592,-636.69,0.00019178,2]
[330553297,1719563440602,-512.83,0.00019178,2]
[330553298,1719563440612,-500.0,0.00019178,2]
[330553299,1719563440624,-1446.78,0.00019178,2]
[330553300,1719563440635,-500.0,0.00019178,2]
[330553301,1719563440646,-500.0,0.00019178,2]
[330553302,1719563440656,-784.27,0.00019178,2]
[330553303,1719563440666,-500.0,0.00019178,2]
[330553304,1719563440675,-500.0,0.00019178,2]
[330553305,1719563440685,-876.2,0.00019178,2]
[330553306,1719563440695,-3131.42,0.00019178,2]
[330553307,1719563440705,-734.9,0.00019178,2]
[330553308,1719563440716,-1234.53,0.00019178,2]
[330553309,1719563440727,-1712.29,0.00019178,2]
[330553310,1719563440737,-500.0,0.00019178,2]
[330553311,1719563440748,-500.0,0.00019178,2]
[330553312,1719563440758,-500.0,0.00019178,2]
[330553313,1719563440768,-500.0,0.00019178,2]
[330553314,1719563440778,-500.0,0.00019178,2]
[330553315,1719563440789,-690.94,0.00019178,2]
[330553316,1719563440799,-500.0,0.00019178,2]
[330553317,1719563440810,-500.0,0.00019178,2]
[330553318,1719563440821,-500.0,0.00019178,2]
[330553319,1719563440831,-500.0,0.00019178,2]
[330553320,1719563440842,-591.74,0.00019178,2]
[330553321,1719563440852,-1629.42,0.00019178,2]
[330553322,1719563440862,-500.0,0.00019178,2]
[330553323,1719563440873,-500.0,0.00019178,2]
[330553324,1719563440884,-550.91,0.00019178,2]
[330553325,1719563440894,-500.0,0.00019178,2]
[330553326,1719563440905,-458.11819023,0.00019178,2]
[330553327,1719563440915,-500.0,0.00019178,2]
[330553328,1719563440926,-530.52,0.00019178,2]
[330553329,1719563440936,-500.0,0.00019178,2]
[330553330,1719563440946,-1890.57,0.00019178,2]
[330553331,1719563440957,-500.0,0.00019178,2]
[330553332,1719563440968,-500.0,0.00019178,2]
[330553333,1719563440979,-973.04,0.00019178,2]
[330553334,1719563440990,-866.62,0.00019178,2]
[330553335,1719563441001,-500.0,0.00019178,2]
[330553336,1719563441012,-500.0,0.00019178,2]
[330553337,1719563441023,-709.04,0.00019178,2]
[330553338,1719563441034,-500.0,0.00019178,2]
[330553339,1719563441044,-500.0,0.00019178,2]
[330553340,1719563441055,-500.0,0.00019178,2]
[330553341,1719563441065,-1108.32,0.00019178,2]
[330553342,1719563441076,-500.0,0.00019178,2]
[330553343,1719563441087,-500.0,0.00019178,2]
[330553344,1719563441098,-500.0,0.00019178,2]
[330553345,1719563441108,-500.0,0.00019178,2]
[330553346,1719563441119,-1302.48,0.00019178,2]
[330553347,1719563441129,-500.0,0.00019178,2]
[330553348,1719563441139,-500.0,0.00019178,2]
[330553349,1719563441149,-500.0,0.00019178,2]
[330553350,1719563441159,-500.0,0.00019178,2]
[330553351,1719563441170,-717.55,0.00019178,2]
[330553352,1719563441180,-764.79,0.00019178,2]
[330553353,1719563441189,-500.0,0.00019178,2]
[330553354,1719563441200,-500.0,0.00019178,2]
[330553355,1719563441209,-1098.87,0.00019178,2]
[330553356,1719563441219,-500.0,0.00019178,2]
[330553357,1719563441229,-500.0,0.00019178,2]
[330553358,1719563441239,-1235.35,0.00019178,2]
[330553359,1719563441248,-500.0,0.00019178,2]
[330553360,1719563441258,-500.0,0.00019178,2]
[330553361,1719563441268,-1298.32,0.00019178,2]
[330553362,1719563441277,-303.67273943,0.00019178,2]
[330553363,1719563441288,-500.0,0.00019178,2]
[330553364,1719563441297,-500.0,0.00019178,2]
[330553365,1719563441306,-3230.39,0.00019178,2]
[330553366,1719563441316,-500.0,0.00019178,2]
[330553367,1719563441325,-1149.31,0.00019178,2]
[330553368,1719563441336,-1087.84,0.00019178,2]
[330553369,1719563441346,-500.0,0.00019178,2]
[330553370,1719563441356,-500.0,0.00019178,2]
[330553371,1719563441366,-5964.58,0.00019178,2]
[330553372,1719563441376,-500.0,0.00019178,2]
[330553373,1719563441387,-500.0,0.00019178,2]
[330553374,1719563441397,-500.0,0.00019178,2]
[330553375,1719563441407,-1749.66,0.00019178,2]
[330553376,1719563441418,-500.0,0.00019178,2]
[330553377,1719563441428,-500.0,0.00019178,2]
[330553378,1719563441438,-500.0,0.00019178,2]
[330553379,1719563441448,-500.0,0.00019178,2]
[330553380,1719563441458,-675.41,0.00019178,2]
[330553381,1719563441468,-711.04,0.00019178,2]
[330553382,1719563441478,-540.39448654,0.00019178,2]
[330553383,1719563441487,-728.41,0.00019178,2]
[330553384,1719563441496,-500.0,0.00019178,2]
[330553385,1719563441506,-500.0,0.00019178,2]
[330553386,1719563441516,-500.0,0.00019178,2]
[330553387,1719563441528,-1470.77,0.00019178,2]
[330553388,1719563441540,-1141.53,0.00019178,2]
[330553389,1719563441554,-767.13,0.00019178,2]
[330553390,1719563441566,-500.0,0.00019178,2]
[330553391,1719563441577,-500.0,0.00019178,2]
[330553392,1719563441588,-500.0,0.00019178,2]
[330553393,1719563441598,-842.32,0.00019178,2]
[330553394,1719563441607,-2038.75,0.00019178,2]
[330553395,1719563441617,-708.02,0.00019178,2]
[330553396,1719563441629,-394.40021071,0.00019178,2]
[330553397,1719563441639,-963.1,0.00019178,2]
[330553398,1719563441649,-815.32,0.00019178,2]
[330553399,1719563441659,-2500.0,0.00019178,3]
[330553400,1719563441669,-500.0,0.00019178,2]
[330553401,1719563441678,-569.26,0.00019178,2]
[330553402,1719563441688,-500.0,0.00019178,2]
[330553403,1719563441698,-290.83,0.00019178,2]
[330553404,1719563441708,-500.0,0.00019178,2]
[330553405,1719563441718,-769.52,0.00019178,2]
[330553406,1719563441728,-500.0,0.00019178,2]
[330553407,1719563441737,-500.0,0.00019178,2]
[330553408,1719563441747,-612.7,0.00019178,2]
[330553409,1719563441756,-2231.33,0.00019178,2]
[330553410,1719563441766,-2484.51,0.00019178,2]
[330553411,1719563441775,-500.44728197,0.00019178,2]
[330553412,1719563441785,-744.17,0.00019178,2]
[330553413,1719563441794,-558.05,0.00019178,2]
[330553414,1719563441804,-500.0,0.00019178,2]
[330553415,1719563441815,-500.0,0.00019178,2]
[330553416,1719563441824,-844.28,0.00019178,2]
[330553417,1719563441834,-500.0,0.00019178,2]
[330553418,1719563441843,-503.12117707,0.00019178,2]
[330553419,1719563441853,-2292.93,0.00019178,2]
[330553420,1719563441862,-500.0,0.00019178,2]
[330553421,1719563441872,-1088.45,0.00019178,2]
[330553422,1719563441881,-537.3895803,0.00019178,2]
[330553423,1719563441891,-500.0,0.00019178,2]
[330553424,1719563441900,-841.96,0.00019178,2]
[330553425,1719563441910,-342.59441945,0.00019178,2]
[330553426,1719563441919,-500.0,0.00019178,2]
[330553427,1719563441929,-1591.83,0.00019178,2]
[330553428,1719563441940,-514.91,0.00019178,2]
[330553429,1719563441950,-500.0,0.00019178,2]
[330553430,1719563441961,-500.0,0.00019178,2]
[330553431,1719563441972,-800.56,0.00019178,2]
[330553432,1719563441982,-500.0,0.00019178,2]
[330553433,1719563441992,-1680.67,0.00019178,2]
[330553434,1719563442002,-4537.54,0.00019178,2]
[330553435,1719563442012,-500.0,0.00019178,2]
[330553436,1719563442023,-500.0,0.00019178,2]
[330553437,1719563442033,-500.0,0.00019178,2]
[330553438,1719563442043,-500.0,0.00019178,2]
[330553439,1719563442053,-1116.65,0.00019178,2]
[330553440,1719563442064,-1087.0,0.00019178,2]
[330553441,1719563442073,-500.0,0.00019178,2]
[330553442,1719563442083,-1039.64,0.00019178,2]
[330553443,1719563442093,-500.0,0.00019178,2]
[330553444,1719563442103,-500.0,0.00019178,2]
[330553445,1719563442113,-500.0,0.00019178,2]
[330553446,1719563442123,-500.0,0.00019178,2]
[330553447,1719563442132,-500.0,0.00019178,2]
[330553448,1719563442143,-500.0,0.00019178,2]
[330553449,1719563442153,-500.0,0.00019178,2]
[330553450,1719563442162,-1192.25,0.00019178,2]
[330553451,1719563442172,-500.0,0.00019178,2]
[330553452,1719563442182,-555.73,0.00019178,2]
[330553453,1719563442192,-500.0,0.00019178,2]
[330553454,1719563442202,-500.0,0.00019178,2]
[330553455,1719563442212,-500.0,0.00019178,2]
[330553456,1719563442222,-977.1,0.00019178,2]
[330553457,1719563442232,-500.0,0.00019178,2]
[330553458,1719563442242,-2038.09,0.00019178,2]
[330553459,1719563442251,-2426.06,0.00019178,2]
[330553460,1719563442261,-500.0,0.00019178,2]
[330553461,1719563442272,-500.0,0.00019178,2]
[330553462,1719563442282,-1863.99,0.00019178,2]
[330553463,1719563442291,-500.0,0.00019178,2]
[330553464,1719563442301,-958.45,0.00019178,2]
[330553465,1719563442313,-1001.39,0.00019178,2]
[330553466,1719563442323,-500.0,0.00019178,2]
[330553467,1719563442334,-359.35052185,0.00019178,2]
[330553468,1719563442344,-500.0,0.00019178,2]
[330553469,1719563442354,-500.0,0.00019178,2]
[330553470,1719563442364,-500.0,0.00019178,2]
[330553471,1719563442374,-500.0,0.00019178,2]
[330553472,1719563442384,-500.0,0.00019178,2]
[330553476,1719563442518,-217.36997873,0.00019178,2]
[330553481,1719563443489,-21172.87002127,0.00019178,2]
[330553482,1719563443499,-755.98,0.00019178,2]
[330553483,1719563443509,-930.54,0.00019178,2]
[330553484,1719563443519,-500.0,0.00019178,2]
[330553485,1719563443529,-500.0,0.00019178,2]
[330553486,1719563443538,-500.0,0.00019178,2]
[330553487,1719563443549,-500.0,0.00019178,2]
[330553488,1719563443561,-1662.91,0.00019178,2]
[330553489,1719563443571,-1922.01,0.00019178,2]
[330553490,1719563443580,-500.0,0.00019178,2]
[330553491,1719563443590,-500.0,0.00019178,2]
[330553492,1719563443600,-511.63,0.00019178,2]
[330553493,1719563443609,-1967.12,0.00019178,2]
[330553494,1719563443618,-500.0,0.00019178,2]
[330553495,1719563443632,-500.0,0.00019178,2]
[330553496,1719563443642,-500.0,0.00019178,2]
[330553497,1719563443652,-500.0,0.00019178,2]
[330553498,1719563443661,-2161.15,0.00019178,2]
[330553499,1719563443671,-866.3,0.00019178,2]
[330553500,1719563443680,-500.0,0.00019178,2]
[330553501,1719563443689,-500.0,0.00019178,2]
[330553502,1719563443699,-500.0,0.00019178,2]
[330553503,1719563443709,-500.0,0.00019178,2]
[330553504,1719563443719,-299.54078134,0.00019178,2]
[330553505,1719563443728,-500.0,0.00019178,2]
[330553506,1719563443738,-2000.0,0.00019178,2]
[330553507,1719563443747,-500.0,0.00019178,2]
[330553508,1719563443756,-500.0,0.00019178,2]
[330553509,1719563443765,-1078.26,0.00019178,2]
[330553510,1719563443774,-500.0,0.00019178,2]
[330553511,1719563443783,-514.36837071,0.00019178,2]
[330553512,1719563443792,-585.95,0.00019178,2]
[330553513,1719563443802,-1482.06,0.00019178,2]
[330553514,1719563443811,-500.0,0.00019178,2]
[330553515,1719563443820,-500.0,0.00019178,2]
[330553516,1719563443830,-1192.16,0.00019178,2]
[330553517,1719563443839,-500.0,0.00019178,2]
[330553518,1719563443847,-500.0,0.00019178,2]
[330553519,1719563443858,-981.08,0.00019178,2]
[330553520,1719563443867,-500.0,0.00019178,2]
[330553521,1719563443878,-500.0,0.00019178,2]
[330553522,1719563443887,-902.52,0.00019178,2]
[330553523,1719563443897,-554.3,0.00019178,2]
[330553524,1719563443907,-3585.83,0.00019178,2]
[330553525,1719563443918,-1295.78,0.00019178,2]
[330553526,1719563443928,-500.0,0.00019178,2]
[330553527,1719563443938,-500.0,0.00019178,2]
[330553528,1719563443947,-500.0,0.00019178,2]
[330553529,1719563443958,-500.0,0.00019178,2]
[330553530,1719563443969,-500.0,0.00019178,2]
[330553531,1719563443978,-500.0,0.00019178,2]
[330553532,1719563443988,-500.0,0.00019178,2]
[330553533,1719563443997,-500.0,0.00019178,2]
[330553534,1719563444006,-500.0,0.00019178,2]
[330553535,1719563444016,-500.0,0.00019178,2]
[330553536,1719563444026,-500.0,0.00019178,2]
[330553537,1719563444036,-1222.79,0.00019178,2]
[330553538,1719563444045,-612.48,0.00019178,2]
[330553539,1719563444054,-500.0,0.00019178,2]
[330553540,1719563444065,-503.0,0.00019178,2]
[330553541,1719563444074,-500.0,0.00019178,2]
[330553542,1719563444083,-983.46061677,0.00019178,2]
[330553543,1719563444093,-500.0,0.00019178,2]
[330553544,1719563444102,-1136.38,0.00019178,2]
[330553545,1719563444111,-500.0,0.00019178,2]
[330553546,1719563444120,-165.82710642,0.00019178,2]
[330553547,1719563444129,-500.0,0.00019178,2]
[330553548,1719563444139,-731.97,0.00019178,2]
[330553549,1719563444148,-1202.55,0.00019178,2]
[330553550,1719563444157,-500.0,0.00019178,2]
[330553551,1719563444167,-4552.4,0.00019178,2]
[330553552,1719563444177,-1173.3,0.00019178,2]
[330553553,1719563444186,-500.0,0.00019178,2]
[330553554,1719563444195,-3490.26,0.00019178,2]
[330553555,1719563444204,-1010.3,0.00019178,2]
[330553556,1719563444214,-500.0,0.00019178,2]
[330553557,1719563444223,-654.65,0.00019178,2]
[330553558,1719563444232,-500.0,0.00019178,2]
[330553559,1719563444241,-1263.09,0.00019178,2]
[330553560,1719563444250,-1464.77,0.00019178,2]
[330553561,1719563444259,-500.0,0.00019178,2]
[330553562,1719563444269,-500.0,0.00019178,2]
[330553563,1719563444278,-1068.95,0.00019178,2]
[330553564,1719563444287,-1328.44,0.00019178,2]
[330553565,1719563444296,-650.82,0.00019178,2]
[330553566,1719563444306,-500.0,0.00019178,2]
[330553567,1719563444316,-500.0,0.00019178,2]
[330553568,1719563444325,-949.67,0.00019178,2]
[330553569,1719563444335,-1255.23,0.00019178,2]
[330553570,1719563444344,-1069.22,0.00019178,2]
[330553571,1719563444354,-669.75,0.00019178,2]
[330553572,1719563444363,-500.0,0.00019178,2]
[330553573,1719563444372,-500.0,0.00019178,2]
[330553574,1719563444381,-1110.62,0.00019178,2]
[330553575,1719563444391,-500.0,0.00019178,2]
[330553576,1719563444400,-500.0,0.00019178,2]
[330553577,1719563444409,-500.0,0.00019178,2]
[330553578,1719563444419,-500.0,0.00019178,2]
[330553579,1719563444428,-500.0,0.00019178,2]
[330553580,1719563444437,-500.0,0.00019178,2]
[330553581,1719563444446,-500.0,0.00019178,2]
[330553582,1719563444454,-628.52,0.00019178,2]
[330553583,1719563444464,-500.0,0.00019178,2]
[330553584,1719563444473,-1166.88,0.00019178,2]
[330553585,1719563444482,-500.0,0.00019178,2]
[330553586,1719563444491,-1107.17,0.00019178,2]
[330553587,1719563444500,-500.0,0.00019178,2]
[330553588,1719563444509,-500.0,0.00019178,2]
[330553589,1719563444518,-1395.51,0.00019178,2]
[330553590,1719563444527,-500.0,0.00019178,2]
[330553591,1719563444537,-655.09,0.00019178,2]
[330553592,1719563444551,-500.0,0.00019178,2]
[330553593,1719563444561,-500.0,0.00019178,2]
[330553594,1719563444570,-500.0,0.00019178,2]
[330553595,1719563444579,-500.0,0.00019178,2]
[330553596,1719563444590,-1049.21,0.00019178,2]
[330553597,1719563444599,-1033.63,0.00019178,2]
[330553598,1719563444608,-536.27,0.00019178,2]
[330553599,1719563444618,-1401.76,0.00019178,2]
[330553600,1719563444629,-500.0,0.00019178,2]
[330553601,1719563444640,-500.0,0.00019178,2]
[330553602,1719563444650,-308.75047665,0.00019178,2]
[330553603,1719563444659,-500.0,0.00019178,2]
[330553604,1719563444668,-1733.27,0.00019178,2]
[330553605,1719563444678,-500.0,0.00019178,2]
[330553606,1719563444687,-749.25,0.00019178,2]
[330553607,1719563444697,-500.0,0.00019178,2]
[330553608,1719563444708,-500.0,0.00019178,2]
[330553609,1719563444720,-500.0,0.00019178,2]
[330553610,1719563444731,-500.0,0.00019178,2]
[330553611,1719563444740,-500.0,0.00019178,2]
[330553612,1719563444750,-500.0,0.00019178,2]
[330553613,1719563444760,-500.0,0.00019178,2]
[330553614,1719563444770,-500.0,0.00019178,2]
[330553615,1719563444780,-500.0,0.00019178,2]
[330553616,1719563444790,-500.0,0.00019178,2]
[330553617,1719563444799,-500.0,0.00019178,2]
[330553618,1719563444810,-500.0,0.00019178,2]
[330553619,1719563444819,-559.44,0.00019178,2]
[330553620,1719563444830,-1651.07,0.00019178,2]
[330553621,1719563444838,-500.0,0.00019178,2]
[330553622,1719563444848,-1158.54,0.00019178,2]